bitfinex/quotes_SOLUSD_20251002
["timestamp","ask_amount","ask_price","bid_price","bid_amount"]
[1759406707636,5.00148498,226.17,226.1,20.8]
[1759406707925,0.48,226.16,226.1,20.8]
[1759406708105,4.4218439,226.15,226.1,20.8]
[1759406708307,4.9018439,226.15,226.1,20.8]
[1759406708717,0.48,226.14,226.1,20.8]
[1759406709211,4.4218439,226.15,226.1,20.8]
[1759406709622,4.9018439,226.15,226.1,20.8]
[1759406710015,5.00158358,226.17,226.1,25.91276332]
[1759406711323,4.52158358,226.17,226.1,20.8]
[1759406711528,0.48,226.16,226.1,20.8]
[1759406712415,4.4218439,226.15,226.1,20.8]
[1759406712614,1.95458397,226.14,226.05,5.11380004]
[1759406712839,0.48,226.13,226.05,36.61380004]
[1759406713022,0.48,226.13,226.06,0.69]
[1759406713733,1.47458397,226.1,226.01,0.69]
[1759406713910,1.95458397,226.09,226.01,0.69]
[1759406714111,1.95458397,226.09,226.02,20.8]
[1759406714411,1.95458397,226.09,226.01,0.69]
[1759406714606,1.47458397,226.09,226.01,0.69]
[1759406714836,1.47458397,226.07,225.98,5.11516468]
[1759406715137,0.48,226.06,226.0,20.8]
[1759406716040,0.48,226.06,225.99,0.69]
[1759406716843,4.42380004,226.05,225.99,0.69]
[1759406717040,4.90361577,226.06,225.99,5.11490477]
[1759406717218,4.90361577,226.06,226.0,21.49]
[1759406720028,4.90361577,226.06,226.0,0.69]
[1759406720926,1.47458397,226.04,225.98,20.8]
[1759406721132,1.47458397,226.01,225.93,0.69]
[1759406721330,1.47458397,225.99,225.93,0.69]
[1759406721638,1.47458397,226.0,225.94,20.8]
[1759406721840,4.42497455,225.99,225.94,20.8]
[1759406722026,5.89955852,225.99,225.94,0.69]
[1759406722222,1.47458397,226.0,225.93,20.8]
[1759406722426,4.42399575,226.04,225.95,0.69]
[1759406722838,35.92381901,226.05,225.95,21.49]
[1759406723029,48.93790309,226.05,225.96,0.67]
[1759406723238,0.48,226.04,225.96,0.67]
[1759406723441,1.95458397,226.04,225.96,0.67]
[1759406724144,4.42419147,226.03,225.96,0.67]
[1759406724522,4.42419147,226.03,225.96,5.09550225]
[1759406724722,35.9239697,226.05,225.97,0.72]
[1759406724920,48.45805378,226.05,225.97,0.72]
[1759406725147,1.47458397,226.01,225.92,4.4263456]
[1759406725359,1.95458397,226.0,225.92,5.1463456]
[1759406725565,1.47458397,226.01,225.93,0.72]
[1759406725724,0.48,226.03,225.93,0.72]
[1759406725925,1.47458397,226.02,225.93,0.72]
[1759406726124,4.42438722,226.02,225.94,4.42595379]
[1759406726325,4.42438722,226.02,225.95,0.72]
[1759406727548,4.42438722,226.02,225.95,5.14572389]
[1759406727856,137.32438722,226.02,225.95,5.14572389]
[1759406728175,137.32438722,226.02,225.96,0.72]
[1759406729860,137.32438722,226.02,225.96,5.14554888]
[1759406731437,137.32438722,226.02,225.96,0.72]
[1759406733554,137.32438722,226.02,225.96,5.14554607]
[1759406733862,132.9,226.02,225.96,5.14554607]
[1759406734058,132.9,226.02,225.97,0.72]
[1759406734355,132.9,226.02,225.98,0.72]
[1759406734735,0.48,226.01,225.95,0.72]
[1759406735065,0.48,226.01,225.93,32.22]
[1759406735450,4.42477876,226.0,225.94,5.14581837]
[1759406737152,4.42458298,226.01,225.94,4.42581837]
[1759406737358,4.42458298,226.01,225.95,0.72]
[1759406738136,4.90458298,226.01,225.95,0.72]
[1759406738338,33.45458397,226.0,225.92,21.52]
[1759406738552,1.47458397,225.98,225.88,5.14703645]
[1759406738754,0.48,225.97,225.88,5.14703645]
[1759406739439,0.48,225.97,225.89,0.72]
[1759406739645,4.42556204,225.96,225.9,4.42673749]
[1759406739847,4.42556204,225.96,225.91,0.72]
[1759406740069,4.42556204,225.96,225.92,0.72]
[1759406741267,4.42517036,225.98,225.92,0.72]
[1759406742043,15.96809628,225.98,225.89,4.42690849]
[1759406742252,15.96809628,225.98,225.9,0.72]
[1759406742569,0.48,225.97,225.9,0.72]
[1759406743249,4.42556204,225.96,225.9,0.72]
[1759406744055,4.90556204,225.96,225.9,0.72]
[1759406744455,4.90556204,225.96,225.88,0.72]
[1759406745568,4.90556204,225.96,225.89,4.42693346]
[1759406745877,4.90556204,225.96,225.89,5.14693346]
[1759406748380,40.09130707,226.06,225.89,5.14693346]
[1759406748381,6.73466922,226.01,225.91,10.87647521]
[1759406748687,6.73466922,226.01,225.94,20.8]
[1759406748688,4.42458696,226.01,225.94,20.8]
[1759406748983,4.42458696,226.01,225.95,0.72]
[1759406749277,4.42439741,226.02,225.95,0.72]
[1759406749577,133.38,226.03,225.95,0.72]
[1759406749873,132.9,226.03,225.95,0.72]
[1759406750267,137.32419801,226.03,225.95,5.14562284]
[1759406750461,137.32419801,226.03,225.96,0.72]
[1759406751251,4.42380244,226.05,225.98,20.8]
[1759406751467,11.05781988,226.09,225.99,0.72]
[1759406751673,0.48,226.08,225.99,0.72]
[1759406751979,0.48,226.07,225.99,0.72]
[1759406752361,4.42356881,226.07,226.0,4.42477876]
[1759406752568,4.42356881,226.07,226.01,0.72]
[1759406752963,4.9030677,226.09,226.01,0.72]
[1759406754264,4.9030677,226.09,226.02,4.42438722]
[1759406754469,4.9030677,226.09,226.01,5.14457282]
[1759406755277,4.4230677,226.09,226.02,0.65]
[1759406755576,11.53535532,226.14,226.02,0.65]
[1759406755760,43.03535532,226.14,226.02,0.65]
[1759406756365,4.42223499,226.13,226.03,15.48467016]
[1759406756572,4.42223499,226.13,226.04,0.65]
[1759406757172,4.90223499,226.13,226.04,0.65]
[1759406757485,15.95782248,226.13,226.04,0.65]
[1759406758077,4.42223499,226.13,226.04,0.65]
[1759406758461,4.42223499,226.13,226.05,4.42380004]
[1759406758761,4.42223499,226.13,226.06,0.65]
[1759406759687,4.42223499,226.13,226.07,4.42340867]
[1759406759886,31.5,226.14,226.08,0.65]
[1759406760963,132.9,226.15,226.08,0.65]
[1759406761194,133.38,226.15,226.08,0.65]
[1759406761376,0.48,226.13,226.08,20.8]
[1759406761562,0.48,226.13,226.08,21.45]
[1759406761767,4.42208313,226.14,226.08,25.22313711]
[1759406762070,4.42208313,226.14,226.08,25.87313711]
[1759406762595,132.9,226.15,226.08,25.87313711]
[1759406762890,132.9,226.15,226.09,0.65]
[1759406763070,0.1,226.17,226.09,0.65]
[1759406763588,0.1,226.17,226.13,20.8]
[1759406763792,0.1,226.17,226.14,0.65]
[1759406763973,0.1,226.17,226.15,0.65]
[1759406767289,0.1,226.17,226.16,0.65]
[1759406768390,0.1,226.17,226.16,15.9481236]
[1759406771915,0.1,226.17,226.16,47.4081236]
[1759406772697,0.1,226.22,226.19,20.8]
[1759406772871,0.1,226.22,226.2,31.46]
[1759406773067,0.1,226.22,226.2,32.11]
[1759406773272,0.1,226.22,226.21,0.65]
[1759406774082,0.1,226.22,226.2,10.87647521]
[1759406774394,0.1,226.22,226.21,31.46]
[1759406775188,0.1,226.22,226.2,0.65]
[1759406775385,0.1,226.22,226.2,52.26]
[1759406775589,0.1,226.22,226.2,20.8]
[1759406776469,0.1,226.22,226.2,21.45]
[1759406777084,4.5204792,226.22,226.17,11.52647521]
[1759406777286,5.0004792,226.22,226.18,20.8]
[1759406777487,5.0004792,226.22,226.17,0.65]
[1759406777691,5.0004792,226.22,226.11,11.05616826]
[1759406777692,0.48,226.21,226.12,10.87647521]
[1759406777873,0.48,226.2,226.12,10.87647521]
[1759406778072,0.48,226.2,226.13,31.46]
[1759406778273,2.78545764,226.19,226.1,0.65]
[1759406778487,2.30545764,226.18,226.07,5.07340867]
[1759406778688,0.48,226.17,226.08,42.33647521]
[1759406778877,0.48,226.16,226.08,10.87647521]
[1759406779082,0.48,226.16,226.08,42.33647521]
[1759406779489,4.4218439,226.15,226.08,42.98647521]
[1759406779892,15.95645367,226.15,226.08,0.65]
[1759406780313,0.48,226.14,226.08,20.8]
[1759406782011,31.46,226.17,226.09,0.65]
[1759406783184,4.42164839,226.16,226.09,0.65]
[1759406783386,0.48,226.15,226.08,20.8]
[1759406783585,0.48,226.15,226.09,0.72]
[1759406783830,2.78545764,226.15,226.02,13.22535106]
[1759406784123,2.30545764,226.12,226.03,0.66]
[1759406784335,2.78545764,226.12,226.03,0.66]
[1759406784817,0.48,226.12,226.03,0.66]
[1759406785390,0.48,226.11,226.04,20.8]
[1759406786112,0.48,226.11,226.04,21.46]
[1759406787516,0.48,226.11,226.01,42.33647521]
[1759406787517,18.2653338,226.1,226.01,21.46]
[1759406787810,2.30545764,226.07,226.01,0.66]
[1759406788008,15.47987616,226.1,226.01,0.66]
[1759406789298,15.47987616,226.1,226.01,5.08451853]
[1759406789512,15.47987616,226.1,226.02,0.66]
[1759406789906,18.2653338,226.1,226.02,0.66]
[1759406790209,2.78545764,226.09,226.02,0.66]
[1759406790405,2.30545764,226.07,225.99,0.66]
[1759406790614,0.48,226.06,225.99,0.66]
[1759406791186,4.42380004,226.05,225.99,0.66]
[1759406791510,2.78545764,226.04,225.98,20.8]
[1759406791712,2.30545764,226.03,225.96,0.66]
[1759406791911,2.30545764,226.03,225.96,21.46]
[1759406792407,0.48,226.03,225.96,21.46]
[1759406792602,0.48,226.03,225.96,0.66]
[1759406792917,17.78875779,226.05,225.96,0.66]
[1759406793389,17.78875779,226.05,225.96,5.08554866]
[1759406793712,17.78875779,226.05,225.97,0.66]
[1759406793889,2.78545764,226.04,225.94,4.42584592]
[1759406794090,2.30545764,226.03,225.95,0.66]
[1759406794392,0.48,226.02,225.95,0.66]
[1759406794588,2.78545764,226.02,225.95,0.66]
[1759406794787,2.78545764,226.01,225.92,0.66]
[1759406795130,0.48,226.04,225.94,20.8]
[1759406795334,31.46,226.05,225.98,20.8]
[1759406795622,4.42355179,226.07,225.99,0.66]
[1759406795623,4.42340867,226.07,225.99,0.66]
[1759406797114,4.90340867,226.07,225.99,0.66]
[1759406797320,4.42340867,226.07,225.99,5.08496449]
[1759406797526,4.42340867,226.07,226.0,0.66]
[1759406799555,4.42340867,226.07,226.0,5.08472207]
[1759406799929,4.42340867,226.07,226.01,0.66]
[1759406800533,4.42321302,226.08,226.01,5.0844593]
[1759406800763,4.42299221,226.1,226.02,0.66]
[1759406802322,2.78545764,226.09,226.02,20.8]
[1759406802723,4.42321302,226.08,226.02,20.8]
[1759406803124,2.78545764,226.07,226.0,20.8]
[1759406803341,2.78545764,226.07,226.01,20.8]
[1759406803951,2.78545764,226.07,226.02,20.8]
[1759406804128,4.42360435,226.06,226.02,20.8]
[1759406804526,31.46,226.09,226.03,0.66]
[1759406804728,0.48,226.12,226.03,0.66]
[1759406804925,31.94,226.12,226.03,0.66]
[1759406805251,146.26056991,226.14,226.03,21.46]
[1759406805422,12.20946946,226.15,226.08,20.8]
[1759406805619,14.32587233,226.15,226.08,21.46]
[1759406805821,14.32587233,226.15,226.08,0.66]
[1759406808329,14.32587233,226.15,226.08,5.08321061]
[1759406808548,13.84587233,226.15,226.09,0.66]
[1759406809330,9.42401182,226.15,226.09,0.66]
[1759406810250,13.84587405,226.15,226.09,0.66]
[1759406810945,13.84587405,226.15,226.09,5.08284572]
[1759406811632,2.78545764,226.14,226.05,15.30013557]
[1759406811943,0.48,226.14,226.06,0.66]
[1759406812347,13.84587405,226.15,226.06,0.66]
[1759406813027,13.84587405,226.15,226.07,4.42340867]
[1759406813429,13.84587405,226.15,226.08,0.66]
[1759406814358,13.84587405,226.15,226.08,5.08311264]
[1759406815746,9.42401182,226.15,226.09,0.69]
[1759406815943,31.44,226.16,226.09,0.69]
[1759406816439,31.44,226.16,226.1,20.8]
[1759406816648,31.44,226.16,226.1,21.49]
[1759406816972,31.44,226.16,226.11,4.42262615]
[1759406817146,31.44,226.16,226.11,5.11262615]
[1759406817462,0.48,226.15,226.1,20.8]
[1759406817663,0.48,226.14,226.1,20.8]
[1759406817957,0.48,226.18,226.11,0.69]
[1759406818360,4.42106193,226.19,226.11,0.69]
[1759406818858,31.44,226.18,226.11,0.69]
[1759406819059,4.42106193,226.19,226.12,4.42243056]
[1759406819258,31.44,226.18,226.12,4.42243056]
[1759406819554,31.44,226.18,226.12,5.11243056]
[1759406819758,31.44,226.18,226.13,0.69]
[1759406819934,31.44,226.18,226.14,0.69]
[1759406820361,31.44,226.18,226.12,4.42243056]
[1759406820362,0.1,226.22,226.15,0.69]
[1759406820537,31.44,226.21,226.15,0.69]
[1759406820736,31.44,226.21,226.15,21.49]
[1759406821046,31.44,226.21,226.16,4.42164839]
[1759406821240,31.44,226.21,226.16,5.11164839]
[1759406821664,0.58,226.22,226.16,5.11164839]
[1759406821863,32.02,226.22,226.16,5.11164839]
[1759406822063,31.54,226.22,226.16,5.11164839]
[1759406822272,31.54,226.22,226.16,4.42164839]
[1759406822580,0.1,226.22,226.21,20.8]
[1759406822860,0.1,226.22,226.21,21.49]
[1759406823069,0.1,226.22,226.21,36.78714626]
[1759406823297,31.92,226.34,226.22,10.87647521]
[1759406823478,35.85816923,226.34,226.25,20.8]
[1759406823842,35.85816923,226.34,226.26,0.69]
[1759406824045,35.85816923,226.34,226.27,0.69]
[1759406824447,4.4184034,226.33,226.27,0.69]
[1759406824643,0.48,226.33,226.25,21.49]
[1759406824860,31.44,226.34,226.22,10.87647521]
[1759406824861,0.48,226.28,226.22,10.87647521]
[1759406825050,4.89942259,226.28,226.22,10.87647521]
[1759406825258,4.89942259,226.28,226.21,25.22067105]
[1759406825259,4.89942259,226.28,226.23,20.8]
[1759406825943,4.41942259,226.28,226.24,20.8]
[1759406826566,0.1,226.29,226.19,4.4209938]
[1759406826769,0.1,226.29,226.2,10.87647521]
[1759406826952,0.1,226.29,226.2,11.56647521]
[1759406827153,4.99919791,226.29,226.21,0.69]
[1759406827651,4.51919791,226.29,226.21,0.69]
[1759406828284,0.1,226.29,226.22,4.42047564]
[1759406828475,0.1,226.29,226.23,11.56647521]
[1759406828951,0.1,226.29,226.25,10.87647521]
[1759406829351,0.1,226.29,226.26,0.69]
[1759406829577,0.1,226.29,226.27,0.69]
[1759406832662,0.1,226.29,226.28,0.69]
[1759406833867,0.1,226.29,226.24,0.69]
[1759406835097,0.1,226.29,226.23,25.2202286]
[1759406835098,4.51917973,226.29,226.25,21.49]
[1759406835876,4.51917973,226.29,226.25,20.8]
[1759406836080,4.51917973,226.29,226.26,0.69]
[1759406836580,4.51917973,226.29,226.25,20.8]
[1759406837085,4.51917973,226.29,226.24,21.49]
[1759406837279,4.51917973,226.29,226.25,20.8]
[1759406837480,4.51917973,226.29,226.25,21.49]
[1759406837792,4.99917973,226.29,226.25,20.8]
[1759406837996,4.99917973,226.29,226.24,20.8]
[1759406838196,0.48,226.28,226.2,0.69]
[1759406838861,4.41949882,226.27,226.2,5.11071346]
[1759406839063,4.41949882,226.27,226.21,0.69]
[1759406841874,0.48,226.26,226.19,20.8]
[1759406842772,1.95470757,226.25,226.13,10.87647521]
[1759406842976,0.48,226.25,226.18,0.67]
[1759406843207,31.42,226.24,226.18,0.67]
[1759406843683,0.48,226.23,226.16,20.8]
[1759406843889,15.47234869,226.21,226.13,10.87647521]
[1759406844090,15.95234869,226.21,226.13,11.53647521]
[1759406844265,0.48,226.2,226.13,0.66]
[1759406844473,15.47234869,226.21,226.13,20.8]
[1759406844474,0.48,226.19,226.13,20.8]
[1759406844883,0.48,226.19,226.11,0.66]
[1759406845479,4.4212574,226.18,226.11,0.66]
[1759406846967,4.4212574,226.18,226.11,5.08262132]
[1759406847167,4.4212574,226.18,226.12,0.66]
[1759406849380,11.05290261,226.19,226.12,5.08240935]
[1759406849697,35.84086648,226.2,226.13,0.66]
[1759406850195,4.42086648,226.2,226.13,0.66]
[1759406850396,4.42068215,226.21,226.13,11.53647521]
[1759406850601,31.42,226.22,226.14,11.53647521]
[1759406850778,31.42,226.22,226.15,0.66]
[1759406851182,4.4204631,226.23,226.15,0.66]
[1759406851380,15.47116371,226.23,226.15,0.66]
[1759406851580,0.48,226.22,226.12,25.22241586]
[1759406851784,0.48,226.21,226.14,20.8]
[1759406851985,0.48,226.2,226.14,20.8]
[1759406852184,0.48,226.19,226.14,20.8]
[1759406852399,0.48,226.18,226.14,20.8]
[1759406852708,0.48,226.17,226.13,20.8]
[1759406853103,0.48,226.19,226.13,20.8]
[1759406853996,4.4212574,226.18,226.13,20.8]
[1759406854186,4.9012574,226.18,226.13,20.8]
[1759406854387,4.9012574,226.18,226.13,21.46]
[1759406854584,4.4212574,226.18,226.14,0.66]
[1759406854804,4.4212574,226.18,226.13,20.8]
[1759406855012,3.4212574,226.18,226.13,0.66]
[1759406855899,15.47405718,226.19,226.13,0.66]
[1759406856594,4.42106193,226.19,226.13,0.66]
[1759406857704,31.42,226.21,226.13,0.66]
[1759406857705,4.90086648,226.2,226.13,0.66]
[1759406857891,4.42086648,226.2,226.13,0.66]
[1759406858809,4.42086648,226.2,226.13,5.08215069]
[1759406858983,4.42086648,226.2,226.14,0.66]
[1759406860496,15.9530327,226.2,226.12,21.46]
[1759406860910,0.48,226.19,226.12,20.8]
[1759406862287,4.4212574,226.18,226.12,21.46]
[1759406864114,0.48,226.19,226.12,25.8823676]
[1759406864689,4.90114443,226.19,226.12,21.46]
[1759406865716,4.90114443,226.19,226.13,0.66]
[1759406865888,15.47317976,226.2,226.13,0.66]
[1759406866093,31.42,226.19,226.13,0.66]
[1759406866299,46.89317976,226.2,226.13,0.66]
[1759406867017,11.05231328,226.2,226.13,5.08217054]
[1759406867198,4.42067105,226.21,226.14,0.66]
[1759406867404,35.84067105,226.21,226.14,0.66]
[1759406868349,35.84067105,226.21,226.15,4.4218439]
[1759406868509,137.3204662,226.23,226.16,0.66]
[1759406869819,137.3204662,226.23,226.17,4.42145288]
[1759406869997,137.3204662,226.23,226.18,0.66]
[1759406871507,137.8004662,226.23,226.18,0.66]
[1759406872433,11.04954624,226.26,226.19,0.66]
[1759406872630,4.41949882,226.27,226.19,0.66]
[1759406872837,31.42,226.26,226.19,0.66]
[1759406873612,4.41931695,226.28,226.22,20.8]
[1759406873939,4.51913604,226.29,226.23,11.53647521]
[1759406874432,4.51913604,226.29,226.23,10.87647521]
[1759406874633,2.3007859,226.25,226.16,11.54647521]
[1759406874808,0.48,226.24,226.16,21.47]
[1759406875012,2.3007859,226.24,226.16,21.47]
[1759406875216,0.48,226.23,226.16,21.47]
[1759406875420,34.2007859,226.25,226.17,0.67]
[1759406875620,4.42008486,226.24,226.17,0.67]
[1759406876931,6.72087076,226.24,226.17,0.67]
[1759406877120,2.7807859,226.23,226.16,20.8]
[1759406877321,2.7807859,226.23,226.16,21.47]
[1759406877526,15.47029702,226.24,226.17,0.67]
[1759406877833,2.7807859,226.23,226.17,20.8]
[1759406878034,0.48,226.23,226.16,21.47]
[1759406878237,17.77108292,226.24,226.16,20.8]
[1759406878438,17.77108292,226.24,226.17,0.67]
[1759406879219,4.42008486,226.24,226.17,5.09140782]
[1759406879420,4.42008486,226.24,226.18,0.67]
[1759406880028,35.82008486,226.24,226.18,0.67]
[1759406880436,31.4,226.24,226.18,5.0910673]
[1759406880626,4.41990275,226.25,226.19,0.67]
[1759406881645,135.3007859,226.29,226.19,0.67]
[1759406881827,31.4,226.28,226.19,0.67]
[1759406882434,36.2994292,226.28,226.2,20.8]
[1759406882636,4.8994292,226.28,226.2,20.8]
[1759406882837,31.4,226.27,226.21,0.67]
[1759406883521,31.88,226.27,226.2,20.8]
[1759406884543,4.41969415,226.26,226.21,0.67]
[1759406885127,133.0,226.29,226.22,0.67]
[1759406885331,31.4,226.28,226.22,0.67]
[1759406886633,31.4,226.28,226.22,5.09030992]
[1759406888250,35.81933887,226.28,226.22,5.09030992]
[1759406894130,35.81933887,226.28,226.22,0.67]
[1759406894331,35.81933887,226.28,226.22,5.09045189]
[1759406895157,31.4,226.28,226.23,0.67]
[1759406895362,0.1,226.29,226.25,20.8]
[1759406895565,0.1,226.29,226.26,5.08969415]
[1759406896972,0.1,226.29,226.26,4.41969415]
[1759406897173,0.1,226.29,226.27,0.67]
[1759406898033,0.1,226.29,226.25,21.47]
[1759406898250,0.1,226.29,226.25,25.21977115]
[1759406898442,0.1,226.29,226.26,0.67]
[1759406900247,0.1,226.29,226.27,0.67]
[1759406902062,0.1,226.29,226.28,0.67]
[1759406902234,0.1,226.29,226.26,4.41966528]
[1759406902235,0.1,226.29,226.27,4.41940178]
[1759406902434,0.1,226.29,226.27,5.08940178]
[1759406904032,0.1,226.29,226.28,0.69]
[1759406904445,0.1,226.29,226.26,0.69]
[1759406904656,0.1,226.29,226.27,0.69]
[1759406905356,0.1,226.29,226.28,0.69]
[1759406909463,1e-08,226.29,226.28,47.36577872]
[1759406909642,0.1,226.36,226.35,20.8]
[1759406910147,0.1,226.36,226.35,32.36647521]
[1759406911374,0.1,226.41,226.38,31.67647521]
[1759406911750,0.1,226.41,226.38,32.36647521]
[1759406912558,0.1,226.41,226.38,36.78382656]
[1759406916378,0.68,226.41,226.38,31.36]
[1759406917042,0.68,226.39,226.32,0.69]
[1759406917245,16.14006713,226.39,226.29,0.69]
[1759406917469,16.14006713,226.39,226.3,31.36]
[1759406917657,2.8807859,226.38,226.3,31.36]
[1759406917859,0.58,226.38,226.3,31.36]
[1759406918182,0.58,226.37,226.3,31.36]
[1759406918378,4.41793682,226.35,226.3,31.36]
[1759406918679,4.41793682,226.35,226.3,32.05]
[1759406918873,4.41793682,226.35,226.31,0.69]
[1759406919055,4.41776107,226.36,226.31,0.69]
[1759406919459,4.99776107,226.36,226.31,0.69]
[1759406920547,4.41754025,226.38,226.32,0.69]
[1759406920790,0.1,226.39,226.32,0.69]
[1759406921145,0.58,226.38,226.31,4.41867396]
[1759406921654,0.58,226.38,226.31,5.10867396]
[1759406921965,4.41740435,226.38,226.32,0.69]
[1759406922365,4.41740435,226.38,226.32,32.05]
[1759406923258,4.41740435,226.38,226.32,36.46844344]
[1759406924179,4.51719784,226.39,226.33,0.69]
[1759406925265,4.51719784,226.39,226.33,5.10828399]
[1759406926861,4.51719784,226.39,226.34,0.69]
[1759406930369,4.51719784,226.39,226.34,5.10810245]
[1759406930560,5.09719784,226.39,226.34,0.69]
[1759406932577,0.58,226.38,226.3,25.90875086]
[1759406932783,0.58,226.38,226.31,31.34]
[1759406933085,0.58,226.38,226.31,32.03]
[1759406933281,0.58,226.38,226.32,0.69]
[1759406933470,0.1,226.39,226.34,20.8]
[1759406933679,0.1,226.39,226.38,31.67647521]
[1759406933879,0.1,226.39,226.38,20.8]
[1759406934185,0.1,226.39,226.37,35.75739406]
[1759406934682,0.1,226.39,226.38,21.46]
[1759406936088,0.1,226.39,226.38,25.87735135]
[1759406937567,0.1,226.39,226.38,36.75382656]
[1759406940391,0.1,226.42,226.41,20.8]
[1759406940687,0.68,226.52,226.41,63.01647521]
[1759406940897,0.68,226.52,226.43,10.87647521]
[1759406941071,0.68,226.52,226.44,31.34]
[1759406941394,0.68,226.52,226.45,52.8]
[1759406941395,0.58,226.51,226.45,52.8]
[1759406941787,0.58,226.51,226.45,20.8]
[1759406941973,4.99488605,226.51,226.45,20.8]
[1759406942171,0.1,226.52,226.45,25.21589482]
[1759406942385,0.1,226.52,226.46,0.66]
[1759406943192,0.1,226.52,226.47,31.34]
[1759406943449,0.1,226.52,226.48,0.66]
[1759406943572,0.1,226.52,226.47,32.0]
[1759406943888,0.1,226.52,226.48,0.66]
[1759406944387,4.51465775,226.52,226.46,36.41575851]
[1759406944569,5.09465775,226.52,226.46,31.34]
[1759406945308,5.09465775,226.52,226.46,32.0]
[1759406945474,0.1,226.52,226.47,0.66]
[1759406945901,0.1,226.52,226.48,10.87647521]
[1759406946187,4.51268757,226.62,226.53,4.41442634]
[1759406946403,4.51268757,226.62,226.54,32.08]
[1759406946570,4.51268757,226.62,226.54,31.42]
[1759406946571,5.18268757,226.62,226.54,31.42]
[1759406946770,5.18268757,226.62,226.55,0.66]
[1759406946967,5.18268757,226.62,226.51,20.8]
[1759406946968,16.21438561,226.62,226.51,4.41463023]
[1759406947234,0.67,226.61,226.53,20.8]
[1759406947688,0.67,226.6,226.5,0.66]
[1759406947990,0.67,226.6,226.5,32.08]
[1759406948167,5.0831879,226.6,226.52,4.41462122]
[1759406948370,5.0831879,226.6,226.53,0.66]
[1759406950176,5.0831879,226.6,226.54,4.41423148]
[1759406950999,5.0831879,226.6,226.53,32.1]
[1759406952414,5.0831879,226.6,226.53,36.51431979]
[1759406952713,4.41286792,226.61,226.54,0.66]
[1759406953486,16.11503772,226.61,226.52,31.4]
[1759406953688,0.67,226.6,226.51,0.66]
[1759406953892,0.67,226.6,226.51,32.06]
[1759406954109,0.67,226.6,226.52,0.66]
[1759406954889,4.41325742,226.59,226.52,0.66]
[1759406955392,0.1,226.62,226.58,20.8]
[1759406955615,0.1,226.62,226.59,0.66]
[1759406955991,0.1,226.62,226.6,0.66]
[1759406957196,0.1,226.62,226.59,20.8]
[1759406957604,0.1,226.62,226.58,0.66]
[1759406958507,0.1,226.62,226.58,5.07338345]
[1759406958714,0.1,226.62,226.59,0.66]
[1759406959025,0.1,226.62,226.6,0.66]
[1759406959241,0.1,226.62,226.58,4.41338345]
[1759406959416,0.1,226.62,226.59,0.66]
[1759406959611,0.1,226.62,226.6,0.66]
[1759406960017,0.1,226.62,226.58,31.58]
[1759406960234,0.1,226.62,226.59,0.66]
[1759406961043,0.1,226.62,226.57,20.8]
[1759406961253,0.1,226.62,226.5,0.66]
[1759406961254,20.8,226.59,226.5,0.66]
[1759406961408,0.67,226.58,226.5,0.66]
[1759406961729,17.01516126,226.62,226.52,10.87647521]
[1759406961730,0.1,226.62,226.52,10.87647521]